bitfinex/quotes_ETHUSD_20250526
["timestamp","ask_amount","ask_price","bid_price","bid_amount"]
[1748293348465,0.7652,2565.5,2565.0,0.795]
[1748293348784,8.27,2565.4,2565.0,0.795]
[1748293349851,4.373,2565.4,2565.0,0.795]
[1748293350051,3.897,2565.3,2565.0,0.795]
[1748293351086,4.373,2565.4,2565.0,0.795]
[1748293351255,3.897,2565.3,2565.0,0.795]
[1748293352384,4.888172,2565.3,2564.8,0.8096]
[1748293355379,0.991172,2565.3,2564.8,0.8096]
[1748293355580,4.888172,2565.3,2564.8,0.8096]
[1748293357710,0.991172,2565.3,2564.8,0.8096]
[1748293357998,3.897,2565.3,2564.8,0.8096]
[1748293358758,0.87652,2565.5,2564.9,4.10161333]
[1748293359080,4.373,2565.4,2564.9,4.10161333]
[1748293359314,8.27,2565.4,2564.9,4.10161333]
[1748293359750,0.87652,2565.5,2564.9,4.10161333]
[1748293360030,3.897,2565.7,2565.3,4.10161333]
[1748293360213,3.897,2565.7,2565.2,0.8145]
[1748293360214,5.58784,2565.7,2565.2,0.8145]
[1748293361119,5.63657074,2565.7,2565.1,0.1]
[1748293362020,0.799,2565.6,2565.1,0.1]
[1748293362216,0.04873594,2565.5,2565.1,0.1]
[1748293362420,0.799,2565.4,2565.1,0.1]
[1748293365731,4.373,2565.3,2565.1,0.1]
[1748293365934,4.4142,2565.2,2565.1,0.1]
[1748293367514,8.27,2565.2,2565.1,0.1]
[1748293368739,9.0222,2565.2,2565.1,0.1]
[1748293369348,17.0222,2565.2,2565.1,0.1]
[1748293370807,25.4422,2565.2,2565.1,0.1]
[1748293371007,29.54381333,2565.2,2565.1,0.1]
[1748293371252,32.49819466,2565.2,2565.1,0.1]
[1748293373956,32.89572635,2565.2,2565.1,0.1]
[1748293377984,36.99772635,2565.2,2565.1,0.1]
[1748293378276,12.652,2565.1,2564.1,0.1]
[1748293378437,0.55,2564.4,2564.1,0.1]
[1748293378641,8.0,2564.2,2564.1,0.1]
[1748293381257,8.7996,2564.2,2564.1,0.1]
[1748293381590,16.269,2564.2,2564.1,0.1]
[1748293381725,12.371,2564.2,2564.1,0.1]
[1748293381924,8.269,2564.2,2564.1,0.1]
[1748293382527,9.92941613,2564.2,2564.1,0.1]
[1748293383755,9.93041613,2564.2,2564.1,0.1]
[1748293390922,8.0,2564.6,2564.1,0.8905]
[1748293391122,4.372,2564.8,2564.1,0.8905]
[1748293391301,3.898,2564.5,2564.1,0.8905]
[1748293399213,3.94675227,2564.5,2564.1,0.8905]
[1748293399510,3.898,2564.5,2564.1,0.8905]
[1748293401915,0.3898,2564.4,2564.1,0.8905]
[1748293402610,8.3898,2564.4,2564.1,0.1]
[1748293402917,8.55,2564.2,2564.1,0.1]
[1748293403220,16.42,2564.2,2564.1,0.1]
[1748293403526,17.176,2564.2,2564.1,0.1]
[1748293403826,19.34274133,2564.2,2564.1,0.1]
[1748293404529,19.34274133,2564.2,2563.1,0.1]
[1748293404530,1.306,2563.5,2563.1,0.1]
[1748293404698,8.0,2563.3,2563.1,0.1]
[1748293404902,0.04878226,2563.2,2563.1,0.1]
[1748293405102,8.0,2563.3,2563.1,0.1]
[1748293405407,2.1765,2563.2,2563.1,0.1]
[1748293405597,10.9325,2563.2,2563.1,0.1]
[1748293406483,11.32714495,2563.2,2563.1,0.1]
[1748293408436,10.3825,2563.2,2563.1,0.1]
[1748293409533,15.03411333,2563.2,2563.1,0.1]
[1748293409829,11.33194295,2563.2,2563.1,0.1]
[1748293412832,13.66894295,2563.2,2563.1,0.1]
[1748293412997,11.33194295,2563.2,2563.1,0.1]
[1748293413498,15.43355628,2563.2,2563.1,0.1]
[1748293414988,23.30355628,2563.2,2563.1,0.1]
[1748293417639,27.20355628,2563.2,2563.1,0.1]
[1748293419746,29.54055628,2563.2,2563.1,0.1]
[1748293422012,33.64255628,2563.2,2563.1,0.1]
[1748293423571,33.64355628,2563.2,2563.1,0.1]
[1748293425720,29.74255628,2563.2,2563.1,0.1]
[1748293426054,33.64355628,2563.2,2563.1,0.1]
[1748293427858,30.01094295,2563.2,2563.1,0.1]
[1748293428045,17.64094295,2563.2,2563.1,0.1]
[1748293428365,30.01094295,2563.2,2563.1,0.1]
[1748293428537,33.91194295,2563.2,2563.1,0.1]
[1748293430627,17.89594295,2563.2,2563.1,0.1]
[1748293430827,26.15994295,2563.2,2563.1,0.1]
[1748293431027,26.70994295,2563.2,2563.1,0.1]
[1748293433561,33.14855628,2563.2,2563.1,0.1]
[1748293436164,33.14755628,2563.2,2563.1,0.1]
[1748293437161,24.88455628,2563.2,2563.1,0.1]
[1748293437360,33.14855628,2563.2,2563.1,0.1]
[1748293437683,24.88455628,2563.2,2563.1,0.1]
[1748293438269,33.14855628,2563.2,2563.1,0.1]
[1748293439084,38.03235628,2563.2,2563.1,0.1]
[1748293443264,34.13135628,2563.2,2563.1,0.1]
[1748293443572,38.03235628,2563.2,2563.1,0.1]
[1748293444582,26.15994295,2563.2,2563.1,0.1]
[1748293445081,26.70994295,2563.2,2563.1,0.1]
[1748293448896,18.44594295,2563.2,2563.1,0.9194]
[1748293449046,26.70994295,2563.2,2563.1,0.1]
[1748293451887,9.4965,2563.2,2563.1,0.1]
[1748293452187,7.87,2563.2,2563.1,0.853]
[1748293452389,15.87,2563.2,2563.1,0.853]
[1748293453049,7.87,2563.2,2563.1,0.853]
[1748293456398,8.264,2563.3,2563.1,0.853]
[1748293458799,0.04877422,2563.2,2563.1,0.853]
[1748293458962,9.80009017,2563.3,2563.1,0.1]
[1748293459164,12.65161333,2563.2,2563.1,0.1]
[1748293459665,8.55,2563.2,2563.1,0.1]
[1748293461790,12.65161333,2563.2,2563.1,0.1]
[1748293461962,15.13048368,2563.2,2563.1,0.1]
[1748293462499,23.00048368,2563.2,2563.1,0.1]
[1748293462663,27.89328368,2563.2,2563.1,0.1]
[1748293463407,30.23028368,2563.2,2563.1,0.1]
[1748293470737,38.65728368,2563.2,2563.1,0.1]
[1748293473002,8.55,2562.2,2562.1,0.1]
[1748293473205,24.675,2562.2,2562.1,0.1]
[1748293474566,27.012,2562.2,2562.1,0.1]
[1748293475115,27.41128346,2562.2,2562.1,0.1]
[1748293480247,25.07528346,2562.2,2562.1,0.1]
[1748293480461,28.30376314,2562.2,2562.1,0.1]
[1748293480804,30.64076314,2562.2,2562.1,0.1]
[1748293482649,35.55826314,2562.2,2562.1,0.1]
[1748293486474,31.45726314,2562.2,2562.1,0.1]
[1748293487265,35.55926314,2562.2,2562.1,0.1]
[1748293492683,31.65726314,2562.2,2562.1,0.1]
[1748293492883,35.56026314,2562.2,2562.1,0.1]
[1748293493247,43.99026314,2562.2,2562.1,0.1]
[1748293494688,1.3281,2561.8,2561.1,0.8833]
[1748293494885,22.27742333,2561.8,2561.1,0.8833]
[1748293495751,22.27742333,2561.8,2561.1,0.1]
[1748293495949,22.27742333,2561.8,2561.2,0.7833]
[1748293496362,22.27742333,2561.8,2561.1,0.1]
[1748293496787,18.17581,2561.8,2561.1,0.1]
[1748293499893,25.94581,2561.8,2561.1,0.1]
[1748293500980,34.19481,2561.8,2561.1,0.1]
[1748293504312,8.55,2561.3,2561.1,0.1]
[1748293504522,1.0887,2561.2,2561.1,0.1]
[1748293505692,17.3377,2561.2,2561.1,0.1]
[1748293506323,9.0887,2561.2,2561.1,0.1]
[1748293506694,16.249,2561.2,2561.1,0.1]
[1748293507094,18.586,2561.2,2561.1,0.1]
[1748293507288,16.249,2561.2,2561.1,0.1]
[1748293508215,8.0,2561.2,2561.1,0.1]
[1748293508519,16.249,2561.2,2561.1,0.9182]
[1748293510115,8.0,2561.2,2561.1,0.9182]
[1748293510313,4.346,2561.2,2561.1,0.9182]
[1748293511829,7.77,2561.4,2561.1,0.9182]
[1748293512126,8.249,2561.3,2561.1,0.9182]
[1748293517346,7.77,2561.4,2561.1,0.9182]
[1748293517505,8.249,2561.3,2561.1,0.9182]
[1748293519348,3.903,2561.2,2561.1,0.9182]
[1748293520446,8.248,2561.2,2561.1,0.9182]
[1748293521777,8.248,2561.2,2561.1,0.1]
[1748293521778,21.95141333,2561.2,2561.1,0.1]
[1748293522072,17.8498,2561.2,2561.1,0.1]
[1748293527442,18.3998,2561.2,2561.1,0.1]
[1748293527784,22.50141333,2561.2,2561.1,0.1]
[1748293530669,23.26161333,2561.2,2561.1,0.1]
[1748293531767,15.01361333,2561.2,2561.1,0.1]
[1748293531971,23.25161333,2561.2,2561.1,0.1]
[1748293533478,31.02161333,2561.2,2561.1,0.1]
[1748293537764,17.9218,2561.2,2561.1,0.1]
[1748293538067,26.1608,2561.2,2561.1,0.1]
[1748293540154,26.9364,2561.2,2561.1,0.1]
[1748293540582,17.3718,2561.2,2561.1,0.1]
[1748293540765,4.335,2561.2,2561.1,0.8632]
[1748293541780,12.335,2561.2,2561.1,0.8632]
[1748293541957,12.335,2561.2,2561.1,0.1]
[1748293542159,15.21226133,2561.2,2561.1,0.1]
[1748293542758,19.86387466,2561.2,2561.1,0.1]
[1748293544354,20.62827466,2561.2,2561.1,0.1]
[1748293545754,28.39827466,2561.2,2561.1,0.1]
[1748293546983,23.53226133,2561.2,2561.1,0.1]
[1748293547857,19.19726133,2561.2,2561.1,0.1]
[1748293548065,27.43626133,2561.2,2561.1,0.1]
[1748293551804,2.87726133,2561.2,2561.1,0.8698]
[1748293551960,4.335,2561.2,2561.1,0.8698]
[1748293552300,8.239,2561.2,2561.1,0.8698]
[1748293553574,4.335,2561.2,2561.1,0.8698]
[1748293554002,4.324,2561.2,2561.1,0.8698]
[1748293557007,8.432,2561.4,2561.1,0.8698]
[1748293557201,8.227,2561.3,2561.1,0.8698]
[1748293557393,75.0,2561.2,2561.1,0.8698]
[1748293564872,78.903,2561.2,2561.1,0.8698]
[1748293573652,78.903,2561.2,2561.1,0.1]
[1748293578366,82.85299309,2561.2,2561.1,0.1]
[1748293583218,95.50460642,2561.2,2561.1,0.1]
[1748293583419,103.27460642,2561.2,2561.1,0.1]
[1748293583827,104.06340642,2561.2,2561.1,0.1]
[1748293585150,99.96179309,2561.2,2561.1,0.1]
[1748293586259,92.19179309,2561.2,2561.1,0.1]
[1748293588271,94.53579309,2561.2,2561.1,0.1]
[1748293588640,98.63740642,2561.2,2561.1,0.1]
[1748293600178,106.40740642,2561.2,2561.1,0.1]
[1748293600336,111.04708406,2561.2,2561.1,0.1]
[1748293601679,114.83340642,2561.2,2561.1,0.1]
[1748293603439,106.61540642,2561.2,2561.1,0.1]
[1748293603654,114.83340642,2561.2,2561.1,0.1]
[1748293604807,97.85279309,2561.2,2561.1,0.1]
[1748293605093,91.03399309,2561.2,2561.1,0.1]
[1748293605299,90.988,2561.2,2561.1,0.1]
[1748293605603,98.988,2561.2,2561.1,0.1]
[1748293605780,90.988,2561.2,2561.1,0.1]
[1748293605967,98.988,2561.2,2561.1,0.1]
[1748293606557,102.93799309,2561.2,2561.1,0.1]
[1748293608482,94.71999309,2561.2,2561.1,0.1]
[1748293608682,102.93799309,2561.2,2561.1,0.1]
[1748293610698,94.71999309,2561.2,2561.1,0.1]
[1748293610902,102.93799309,2561.2,2561.1,0.1]
[1748293611441,99.03399309,2561.2,2561.1,0.1]
[1748293611645,102.93799309,2561.2,2561.1,0.1]
[1748293613393,90.77,2561.2,2561.1,0.1]
[1748293613598,98.988,2561.2,2561.1,0.873]
[1748293616222,98.988,2561.2,2561.1,0.1]
[1748293616425,95.084,2561.2,2561.1,0.1]
[1748293616621,98.988,2561.2,2561.1,0.1]
[1748293618829,100.8290914,2561.2,2561.1,0.1]
[1748293619347,105.48070473,2561.2,2561.1,0.1]
[1748293621172,101.57670473,2561.2,2561.1,0.1]
[1748293621389,100.8290914,2561.2,2561.1,0.1]
[1748293622397,100.8290914,2561.2,2561.1,0.902]
[1748293622398,75.0,2561.2,2561.1,0.902]
[1748293629570,83.205,2561.2,2561.1,0.902]
[1748293630068,79.302,2561.2,2561.1,0.902]
[1748293633125,75.0,2561.2,2561.1,0.902]
[1748293633327,75.0,2561.2,2561.1,5.00361333]
[1748293633871,75.0,2561.2,2561.1,0.902]
[1748293634318,75.0,2561.2,2561.1,5.00361333]
[1748293634612,75.0,2561.2,2561.1,5.37195771]
[1748293636026,75.0,2561.2,2561.1,5.00361333]
[1748293640633,75.0,2561.2,2561.1,0.902]
[1748293643622,75.0,2561.2,2561.1,0.1]
[1748293644126,78.903,2561.2,2561.1,0.1]
[1748293650828,80.20247608,2561.2,2561.1,0.1]
[1748293651396,81.01457608,2561.2,2561.1,0.1]
[1748293651590,89.01457608,2561.2,2561.1,0.1]
[1748293657867,85.11157608,2561.2,2561.1,0.1]
[1748293658158,83.193,2561.2,2561.1,0.1]
[1748293660086,91.9768,2561.2,2561.1,0.1]
[1748293660887,92.5268,2561.2,2561.1,0.1]
[1748293661254,104.39841333,2561.2,2561.1,0.1]
[1748293661891,108.34840642,2561.2,2561.1,0.1]
[1748293662990,110.69240642,2561.2,2561.1,0.1]
[1748293667804,114.80340642,2561.2,2561.1,0.1]
[1748293668106,110.69240642,2561.2,2561.1,0.1]
[1748293669971,102.49940642,2561.2,2561.1,0.1]
[1748293670185,110.69340642,2561.2,2561.1,0.1]
[1748293670881,102.49940642,2561.2,2561.1,0.1]
[1748293671219,110.69340642,2561.2,2561.1,0.1]
[1748293672519,106.59179309,2561.2,2561.1,0.1]
[1748293676620,106.59279309,2561.2,2561.1,0.1]
[1748293678125,110.70379309,2561.2,2561.1,0.1]
[1748293678332,106.59279309,2561.2,2561.1,0.1]
[1748293678856,105.79799309,2561.2,2561.1,0.1]
[1748293681650,102.90399309,2561.2,2561.1,0.1]
[1748293681940,95.05,2561.2,2561.1,0.1]
[1748293682129,90.954,2561.2,2561.1,0.1]
[1748293682305,98.954,2561.2,2561.1,0.1]
[1748293683454,90.77,2561.2,2561.1,0.1]
[1748293683750,98.954,2561.2,2561.1,0.1]
[1748293685863,83.0,2561.2,2561.1,0.1]
[1748293686165,83.183,2561.2,2561.1,0.1]
[1748293687926,83.183,2561.2,2561.1,0.8917]
[1748293688133,95.13299309,2561.2,2561.1,0.1]
[1748293688765,95.13299309,2561.2,2561.1,0.8917]
[1748293688766,83.22899309,2561.2,2561.1,0.8917]
[1748293689071,79.279,2561.2,2561.1,0.8917]
[1748293691649,75.0,2561.2,2561.1,0.8917]
[1748293695453,60.93758123,2561.2,2561.1,9.4417]
[1748293695875,59.99744691,2561.2,2561.1,13.3447]
[1748293696589,58.99274441,2561.2,2561.1,17.6172565]
[1748293696796,57.95584441,2561.2,2561.1,17.0291565]
[1748293696995,53.57280405,2561.2,2561.1,21.3081565]
[1748293697155,52.06486705,2561.2,2561.1,21.3081565]
[1748293697699,42.43691261,2561.2,2561.1,21.3081565]
[1748293697906,42.43691261,2561.2,2561.1,25.5216565]
[1748293697907,41.74861262,2561.2,2561.1,25.5216565]
[1748293698198,8.45426923,2561.2,2561.1,34.54326983]
[1748293698425,4.25889215,2561.2,2561.1,34.54326983]
[1748293698574,1.53261915,2561.2,2561.1,22.2596565]
[1748293698904,1.96661571,2562.6,2561.6,0.55]
[1748293699201,1.96661571,2562.6,2562.2,4.10161333]
[1748293699592,2.16327728,2562.6,2561.8,4.10161333]
[1748293699977,2.16327728,2562.6,2562.0,4.10161333]
[1748293701225,1.96661571,2562.6,2562.0,4.10161333]
[1748293701626,1.96661571,2562.6,2561.6,4.10161333]
[1748293701627,0.76,2562.5,2561.6,4.10161333]
[1748293701789,0.76,2562.5,2561.4,4.10161333]
[1748293704428,3.902,2562.4,2561.4,4.10161333]
[1748293704627,4.3682,2562.4,2561.4,4.10161333]
[1748293705128,0.4662,2562.4,2561.8,4.10161333]
[1748293705347,0.76,2562.5,2562.0,4.10161333]
[1748293705548,4.277,2562.8,2562.2,4.10161333]
[1748293709249,4.277,2562.8,2562.0,4.10161333]
[1748293709426,5.1709,2562.8,2562.0,4.10161333]
[1748293715972,0.8192,2562.7,2562.0,4.10161333]
[1748293716939,0.8192,2562.7,2562.2,4.10161333]
[1748293717455,4.277,2562.8,2562.2,4.10161333]
[1748293717662,4.277,2562.8,2561.9,4.10161333]
[1748293717859,4.277,2562.8,2562.1,4.10161333]
[1748293718678,0.8192,2563.1,2562.1,4.10161333]
[1748293721480,0.8192,2563.1,2562.2,0.36707385]
[1748293722483,0.8192,2563.1,2562.1,4.10161333]
[1748293725245,0.8192,2563.1,2562.2,0.36770579]
[1748293726587,0.8192,2563.1,2562.3,0.36770579]
[1748293727193,0.8192,2563.1,2562.4,4.10161333]
[1748293727492,0.8192,2563.1,2562.5,8.0]
[1748293732190,4.10161333,2563.1,2562.3,0.36770579]
[1748293732367,0.7712,2562.9,2562.3,0.36770579]
[1748293733289,4.10161333,2562.9,2562.3,0.36770579]
[1748293733469,0.7712,2562.8,2562.3,0.36770579]
[1748293733665,0.7712,2562.8,2562.1,0.36770579]
[1748293734673,0.7712,2562.8,2562.2,0.36770579]
[1748293734674,0.7712,2562.4,2562.2,0.36770579]
[1748293736271,0.50372,2562.4,2562.2,0.36770579]
[1748293736471,0.7702,2562.3,2562.0,0.36770579]
[1748293736672,4.10161333,2562.3,2562.0,0.36770579]
[1748293736883,0.7702,2562.2,2562.0,0.36770579]
[1748293738196,0.7702,2562.2,2561.5,0.36770579]
[1748293739500,0.7702,2562.2,2561.3,0.36770579]
[1748293739888,0.7702,2562.2,2561.3,4.46931912]
[1748293740073,0.7702,2562.2,2561.5,4.10161333]
[1748293740472,0.7702,2562.2,2561.6,0.36770579]
[1748293742090,0.7702,2562.2,2561.5,0.36770579]
[1748293743993,0.7702,2562.2,2561.5,4.46931912]
[1748293745069,0.7702,2562.2,2561.7,4.10161333]
[1748293745501,0.7702,2562.2,2561.6,0.36770579]
[1748293748021,0.7702,2562.2,2561.3,4.46931912]
[1748293749406,0.7702,2562.2,2561.5,4.10161333]
[1748293750014,0.7702,2562.2,2561.7,4.10161333]
[1748293750172,0.7556,2563.0,2562.1,4.10161333]
[1748293752115,0.7556,2563.0,2561.8,0.83110579]
[1748293752116,8.159,2563.0,2561.8,0.83110579]
[1748293752305,0.903,2562.9,2561.8,0.83110579]
[1748293752506,0.903,2562.9,2561.9,0.36770579]
[1748293753201,0.903,2562.9,2562.0,8.0]
[1748293753714,0.903,2562.9,2562.1,0.36770579]
[1748293755004,0.903,2562.9,2561.9,0.36770579]
[1748293756436,0.903,2562.9,2562.0,0.36770579]
[1748293756914,0.903,2562.9,2562.0,8.36770579]
[1748293757853,0.903,2562.9,2562.1,0.36770579]
[1748293762411,0.9418,2562.8,2562.1,0.36770579]
[1748293763251,0.9418,2562.8,2561.7,0.36770579]
[1748293764054,0.9418,2562.8,2561.8,8.0]
[1748293764819,0.9418,2562.8,2561.9,0.36770579]
[1748293765954,0.9418,2562.6,2561.9,0.36770579]
[1748293766254,0.9418,2562.4,2561.9,0.36770579]
[1748293766854,4.8428,2562.4,2561.9,0.36770579]
[1748293767054,0.9333,2562.3,2561.5,0.36770579]
[1748293770651,0.9036,2562.2,2561.5,0.36770579]
[1748293771333,0.9036,2562.2,2561.4,0.36770579]
[1748293773065,0.9785,2562.1,2561.4,0.36770579]
[1748293773962,0.9785,2562.1,2561.3,0.36770579]
[1748293774623,0.95781416,2562.1,2561.3,0.36770579]
[1748293775523,0.95781416,2562.1,2561.2,0.36770579]
[1748293777768,0.95781416,2562.1,2561.2,4.46931912]
[1748293777959,0.95781416,2562.1,2561.4,4.10161333]
[1748293779269,0.95781416,2562.1,2561.5,0.36770579]
[1748293779469,5.03961333,2562.0,2561.5,0.36770579]
[1748293779629,0.938,2561.7,2561.5,0.36770579]
[1748293780241,0.938,2561.7,2561.1,0.1]
[1748293787482,0.938,2561.7,2561.2,4.10161333]
[1748293788852,0.938,2561.7,2561.3,0.36795072]
[1748293790134,0.938,2561.7,2561.4,0.36795072]
[1748293791379,0.938,2561.7,2561.3,0.36795072]
[1748293791582,0.9176,2562.5,2561.6,4.10161333]
[1748293791784,0.9176,2562.3,2561.6,4.10161333]
[1748293792165,0.9176,2562.3,2561.5,8.0]
[1748293792376,0.9176,2562.3,2561.7,0.36795072]
[1748293792986,0.9176,2562.0,2561.7,0.36795072]
[1748293794001,3.902,2562.3,2561.7,0.36795072]
[1748293794002,5.01921333,2561.8,2561.7,0.36795072]
[1748293794904,0.9176,2561.8,2561.7,0.36795072]
[1748293801379,4.243,2562.1,2561.7,0.36795072]
[1748293801719,5.1533,2562.1,2561.7,0.36795072]
[1748293802611,0.9103,2562.1,2561.7,0.36795072]
[1748293806612,0.50119133,2562.0,2561.7,0.36795072]
[1748293806806,0.9103,2562.1,2561.7,0.36795072]
[1748293808943,0.9103,2562.1,2561.3,0.36795072]
[1748293809350,0.9651,2561.9,2561.3,0.36795072]
[1748293809735,0.9161,2561.7,2561.3,0.36795072]
[1748293810568,1.39791,2561.7,2561.2,0.36795072]
[1748293810774,0.8873,2561.6,2561.2,0.36795072]
[1748293811932,0.8873,2561.6,2561.1,0.1]
[1748293812774,0.8873,2561.6,2561.1,4.20161333]
[1748293812972,0.963,2561.8,2561.2,0.4538]
[1748293813668,0.9593,2562.0,2561.2,8.4538]
[1748293814247,0.9593,2562.0,2561.3,0.36809341]
[1748293815384,0.9593,2562.0,2561.4,0.36809341]
[1748293815540,1.86973,2562.0,2561.4,0.36809341]
[1748293817146,1.86973,2562.0,2561.3,0.36809341]
[1748293818786,0.9593,2562.0,2561.3,0.36809341]
[1748293824504,3.902,2562.1,2561.4,0.4538]
[1748293828923,0.8931,2562.2,2561.4,0.4538]
[1748293829102,3.902,2562.1,2561.4,0.4538]
[1748293829587,3.902,2562.1,2561.5,0.36856179]
[1748293829919,4.80581,2562.1,2561.5,0.36856179]
[1748293830145,0.8931,2562.2,2561.7,0.4538]
[1748293830350,3.902,2562.4,2561.8,0.03902791]
[1748293830483,0.9351,2562.5,2561.8,0.03902877]
[1748293830688,0.9351,2562.5,2561.8,0.36856179]
[1748293830907,3.902,2562.4,2561.8,0.36856179]
[1748293832227,3.901,2562.4,2561.8,0.36856179]
[1748293832535,3.901,2562.4,2561.7,0.4538]
[1748293834631,8.136,2562.6,2561.7,0.4538]
[1748293834791,9.98003975,2562.6,2561.7,0.4538]
[1748293835508,9.98003975,2562.6,2561.8,0.36837503]
[1748293836735,9.98003975,2562.6,2561.7,0.4538]
[1748293838929,1.84403975,2562.6,2561.7,0.4538]
[1748293839119,9.98003975,2562.6,2561.8,0.36834902]
[1748293839301,9.98003975,2562.6,2561.9,0.4347]
[1748293843038,1.84403975,2562.6,2561.9,0.4347]
[1748293843338,3.901,2562.5,2561.9,0.4347]
[1748293850544,4.99367397,2562.5,2561.9,0.4347]
[1748293857988,0.9467,2562.7,2561.9,0.4347]
[1748293858173,4.235,2562.8,2562.1,0.4347]
[1748293858346,8.136,2562.8,2562.1,0.4347]
[1748293860272,4.235,2562.8,2562.1,0.4347]
[1748293860577,3.901,2562.7,2562.1,0.4347]
[1748293863198,4.10161333,2562.5,2562.1,0.4347]
[1748293863388,0.04878581,2562.4,2562.1,0.4347]
[1748293863697,0.9304,2562.5,2562.1,0.4347]
[1748293865765,0.9304,2562.5,2561.6,0.0216]
[1748293866090,0.9304,2562.5,2561.7,0.0216]
[1748293866266,8.0,2562.8,2561.7,0.0216]
[1748293866469,7.77,2562.9,2562.2,4.12321333]
[1748293866681,7.77,2562.9,2562.3,0.0216]
[1748293867674,8.127,2563.1,2562.3,0.0216]
[1748293872408,4.226,2563.1,2562.3,0.0216]
[1748293872581,9.44687133,2563.1,2562.3,0.0216]
[1748293882841,5.54587133,2563.1,2562.3,0.0216]
[1748293883027,3.9,2563.0,2562.3,0.0216]
[1748293883427,3.9,2563.0,2562.4,0.3683407]
[1748293883629,3.9,2563.0,2562.4,0.3899407]
[1748293885347,3.9,2563.0,2562.4,0.0216]
[1748293886753,3.9,2563.0,2562.5,0.36888587]
[1748293887859,3.9,2563.0,2562.4,0.0216]
[1748293888761,4.15038847,2562.9,2562.4,0.0216]
[1748293888969,4.93198847,2562.9,2562.4,0.0216]
[1748293889123,4.88321333,2562.9,2562.4,0.0216]
[1748293890158,0.7816,2562.9,2562.4,0.0216]
[1748293895982,4.216,2562.8,2562.4,0.0216]
[1748293896284,5.22803613,2562.8,2562.4,0.0216]
[1748293896587,5.22803613,2562.8,2562.0,0.0216]
[1748293897489,5.22803613,2562.8,2562.1,0.3695034]
[1748293897862,4.10161333,2562.3,2562.1,0.3695034]
[1748293898865,3.9,2562.4,2562.0,0.0216]
[1748293899054,4.37151,2562.4,2562.0,0.0216]
[1748293905566,13.80413613,2562.8,2562.0,0.0216]
[1748293905775,4.216,2562.8,2562.3,4.10161333]
[1748293905987,4.216,2562.8,2562.5,0.0216]
[1748293906675,1.96661571,2563.3,2562.5,0.0216]
[1748293906873,10.08461571,2563.3,2562.5,0.0216]
[1748293907087,5.68646157,2563.2,2562.5,0.0216]
[1748293911633,9.83685222,2563.2,2562.5,0.0216]
[1748293911840,9.7880749,2563.2,2562.5,0.0216]
[1748293912538,4.10161333,2563.0,2562.5,0.0216]
[1748293913539,8.8177,2563.1,2562.5,0.0216]
[1748293913703,1.86057749,2563.0,2562.5,0.0216]
[1748293915300,5.76057749,2563.0,2562.5,0.0216]
[1748293917408,3.9,2563.0,2562.5,0.0216]
[1748293918424,1.86458157,2563.2,2562.5,0.0216]
[1748293918624,8.19512,2563.2,2562.5,0.0216]
[1748293919255,4.29512,2563.2,2562.5,0.0216]
[1748293919620,8.19512,2563.2,2562.5,0.0216]
[1748293920961,4.29512,2563.2,2562.5,0.0216]
[1748293921114,8.19512,2563.2,2562.5,0.0216]
[1748293921860,4.29512,2563.2,2562.5,0.0216]
[1748293922065,0.07912,2563.2,2562.6,4.10161333]
[1748293922266,0.07912,2563.2,2562.9,0.0216]
[1748293923410,0.07912,2563.2,2563.0,4.10161333]
[1748293923718,0.07912,2563.2,2563.1,0.0216]
[1748293924128,0.07912,2563.2,2563.0,4.10161333]
[1748293924129,4.207,2563.8,2563.0,4.04409333]
[1748293926425,4.207,2563.8,2562.9,8.0]
[1748293929056,4.207,2563.8,2562.9,8.38195026]
[1748293931635,8.107,2563.8,2562.9,8.38195026]
[1748293933556,0.8871,2563.9,2562.9,8.38195026]
[1748293933759,3.9,2563.7,2562.9,8.38195026]
[1748293934271,0.8871,2563.9,2562.9,8.38195026]
[1748293934458,3.9,2563.7,2562.9,8.38195026]
[1748293934775,0.8871,2563.9,2562.9,8.38195026]
[1748293934943,4.307,2563.9,2563.1,8.0]
[1748293935141,8.207,2563.9,2563.1,8.0]
[1748293935559,4.0,2563.9,2563.1,8.0]
[1748293936283,0.1,2563.9,2563.1,8.0]
[1748293936844,4.0,2563.9,2563.1,8.0]
[1748293943265,4.0,2563.9,2563.0,4.10161333]
[1748293943266,0.8042,2563.8,2562.7,0.45929922]
[1748293943456,4.10161333,2563.7,2562.8,8.0]
[1748293944166,4.10161333,2563.7,2562.8,8.38938555]
[1748293945070,0.8042,2563.8,2562.8,8.38938555]
[1748293945879,1.40512263,2563.8,2562.8,8.38938555]
[1748293946118,0.8042,2563.8,2562.8,8.0]
[1748293946413,4.7032,2563.8,2562.8,8.0]
[1748293947162,4.7032,2563.8,2562.9,0.36773702]
[1748293948409,4.7032,2563.8,2563.0,0.36773702]
[1748293949654,4.7032,2563.8,2562.9,0.36773702]
[1748293950713,5.60422,2563.8,2562.9,0.36773702]
[1748293951196,1.70522,2563.8,2562.9,0.36773702]
[1748293951506,5.60422,2563.8,2562.9,0.36773702]
[1748293952007,5.60422,2563.8,2563.0,0.36773702]
[1748293953198,5.65298473,2563.8,2563.0,0.36773702]
[1748293953495,0.98545981,2563.7,2563.0,0.36773702]
[1748293953701,0.98545981,2563.7,2563.1,0.36773702]
[1748293954762,0.98545981,2563.7,2562.8,0.36773702]